fUSD/lending_fUSD_20260123
["ID","MTS","AMOUNT","RATE_DAILY","PERIOD"]
[403132349,1769181048275,-151.0,0.00018,2]
[403132350,1769181048284,-165.19922,0.00018,2]
[403132351,1769181048294,-151.0,0.00018,2]
[403132352,1769181048303,-151.0,0.00018,2]
[403132353,1769181048312,-151.0,0.00018,2]
[403132354,1769181048322,-151.0,0.00018,2]
[403132355,1769181048331,-151.0,0.00018,2]
[403132356,1769181048340,-151.0,0.00018,2]
[403132357,1769181048349,-151.0,0.00018,2]
[403132358,1769181048358,-168.145456,0.00018,2]
[403132359,1769181048368,-151.0,0.00018,2]
[403132360,1769181048377,-151.0,0.00018,2]
[403132361,1769181048386,-151.000017,0.00018,2]
[403132362,1769181048396,-590.441462,0.00018,2]
[403132363,1769181048405,-590.441462,0.00018,2]
[403132364,1769181048414,-581.257512,0.00018,2]
[403132365,1769181048423,-590.441462,0.00018,2]
[403132366,1769181048433,-581.257512,0.00018,2]
[403132367,1769181048442,-581.257512,0.00018,2]
[403132368,1769181048451,-590.441462,0.00018,2]
[403132369,1769181048461,-614.76362,0.00018,2]
[403132370,1769181048470,-590.441462,0.00018,2]
[403132371,1769181048483,-614.76362,0.00018,2]
[403132372,1769181048492,-581.257512,0.00018,2]
[403132373,1769181048502,-590.441462,0.00018,2]
[403132374,1769181048514,-614.76362,0.00018,2]
[403132375,1769181048524,-581.257512,0.00018,2]
[403132376,1769181048533,-151.0,0.00018,2]
[403132377,1769181048543,-581.257512,0.00018,2]
[403132378,1769181048557,-151.0,0.00018,2]
[403132379,1769181048567,-168.066153,0.00018,2]
[403132380,1769181048579,-614.76362,0.00018,2]
[403132381,1769181048589,-590.441462,0.00018,2]
[403132382,1769181048599,-581.257512,0.00018,2]
[403132383,1769181048609,-614.76362,0.00018,2]
[403132384,1769181048620,-590.441462,0.00018,2]
[403132385,1769181048629,-581.257512,0.00018,2]
[403132386,1769181048638,-614.76362,0.00018,2]
[403132387,1769181048648,-590.441462,0.00018,2]
[403132388,1769181048657,-581.257512,0.00018,2]
[403132389,1769181048668,-614.76362,0.00018,2]
[403132390,1769181048677,-590.441462,0.00018,2]
[403132391,1769181048687,-581.257512,0.00018,2]
[403132392,1769181048696,-614.76362,0.00018,2]
[403132393,1769181048707,-590.441462,0.00018,2]
[403132394,1769181048716,-614.76362,0.00018,2]
[403132395,1769181048726,-590.441462,0.00018,2]
[403132396,1769181048735,-151.0,0.00018,2]
[403132397,1769181048745,-581.257512,0.00018,2]
[403132398,1769181048754,-236.888912,0.00018,2]
[403132399,1769181048764,-581.257512,0.00018,2]
[403132400,1769181048774,-614.76362,0.00018,2]
[403132401,1769181048783,-614.76362,0.00018,2]
[403132402,1769181048792,-614.76362,0.00018,2]
[403132403,1769181048802,-1546.296561,0.00018,2]
[403132404,1769181048812,-1546.296561,0.00018,2]
[403132405,1769181048821,-1546.296561,0.00018,2]
[403132406,1769181048831,-151.0,0.00018,2]
[403132407,1769181048840,-1546.296561,0.00018,2]
[403132408,1769181048850,-151.0,0.00018,2]
[403132409,1769181048860,-1546.296561,0.00018,2]
[403132410,1769181048870,-151.0,0.00018,2]
[403132411,1769181048879,-1546.296561,0.00018,2]
[403132412,1769181048889,-1108.665607,0.00018,2]
[403132413,1769181048898,-1108.665607,0.00018,2]
[403132414,1769181048908,-1546.296561,0.00018,2]
[403132415,1769181048917,-1108.665607,0.00018,2]
[403132416,1769181048927,-1546.296561,0.00018,2]
[403132417,1769181048936,-151.0,0.00018,2]
[403132418,1769181048946,-1546.296561,0.00018,2]
[403132419,1769181048956,-151.0,0.00018,2]
[403132420,1769181048966,-151.0,0.00018,2]
[403132421,1769181048976,-1108.665607,0.00018,2]
[403132422,1769181048986,-1211.141172,0.00018,2]
[403132423,1769181048996,-1108.665607,0.00018,2]
[403132424,1769181049005,-1546.296561,0.00018,2]
[403132425,1769181049014,-1108.665607,0.00018,2]
[403132426,1769181049024,-1211.141172,0.00018,2]
[403132427,1769181049033,-1546.296561,0.00018,2]
[403132428,1769181049043,-151.0,0.00018,2]
[403132429,1769181049052,-1546.296561,0.00018,2]
[403132430,1769181049061,-151.0,0.00018,2]
[403132431,1769181049071,-1108.665607,0.00018,2]
[403132432,1769181049082,-151.0,0.00018,2]
[403132433,1769181049091,-1211.141172,0.00018,2]
[403132434,1769181049101,-1108.665607,0.00018,2]
[403132435,1769181049111,-1108.665607,0.00018,2]
[403132436,1769181049120,-1211.141172,0.00018,2]
[403132437,1769181049130,-1211.141172,0.00018,2]
[403132438,1769181049139,-151.0,0.00018,2]
[403132439,1769181049148,-1108.665607,0.00018,2]
[403132440,1769181049157,-1211.141172,0.00018,2]
[403132441,1769181049167,-151.0,0.00018,2]
[403132442,1769181049180,-1108.665607,0.00018,2]
[403132443,1769181049189,-278.823851,0.00018,2]
[403132444,1769181049199,-1108.665607,0.00018,2]
[403132445,1769181049209,-1211.141172,0.00018,2]
[403132446,1769181049218,-1211.141172,0.00018,2]
[403132447,1769181049228,-1211.141172,0.00018,2]
[403132448,1769181049237,-1211.141172,0.00018,2]
[403132449,1769181049246,-1211.141172,0.00018,2]
[403132450,1769181049255,-1211.141172,0.00018,2]
[403132451,1769181049264,-228.627411,0.00018,2]
[403132452,1769181049273,-228.627411,0.00018,2]
[403132453,1769181049282,-228.627411,0.00018,2]
[403132454,1769181049293,-228.627411,0.00018,2]
[403132455,1769181049303,-228.627411,0.00018,2]
[403132456,1769181049313,-228.627411,0.00018,2]
[403132457,1769181049323,-228.627411,0.00018,2]
[403132458,1769181049332,-228.627411,0.00018,2]
[403132459,1769181049342,-228.627411,0.00018,2]
[403132460,1769181049351,-228.627411,0.00018,2]
[403132461,1769181049360,-151.0,0.00018,2]
[403132462,1769181049369,-228.627411,0.00018,2]
[403132463,1769181049379,-151.0,0.00018,2]
[403132464,1769181049388,-228.627411,0.00018,2]
[403132465,1769181049398,-151.0,0.00018,2]
[403132466,1769181049407,-151.0,0.00018,2]
[403132467,1769181049417,-151.0,0.00018,2]
[403132468,1769181049426,-151.0,0.00018,2]
[403132469,1769181049435,-151.0,0.00018,2]
[403132470,1769181049445,-166.324004,0.00018,2]
[403132471,1769181049457,-152.487994,0.00018,2]
[403132472,1769181049475,-151.0,0.00018,2]
[403132473,1769181049484,-151.0,0.00018,2]
[403132474,1769181049493,-151.0,0.00018,2]
[403132475,1769181049503,-151.0,0.00018,2]
[403132476,1769181049514,-151.0,0.00018,2]
[403132477,1769181049523,-151.0,0.00018,2]
[403132478,1769181049532,-151.0,0.00018,2]
[403132479,1769181049544,-282.636501,0.00018,2]
[403132480,1769181049553,-151.0,0.00018,2]
[403132481,1769181049562,-151.0,0.00018,2]
[403132482,1769181049571,-151.0,0.00018,2]
[403132483,1769181049581,-151.0,0.00018,2]
[403132484,1769181049590,-151.0,0.00018,2]
[403132485,1769181049599,-151.0,0.00018,2]
[403132486,1769181049608,-151.0,0.00018,2]
[403132487,1769181049619,-168.785168,0.00018,2]
[403132488,1769181049628,-151.0,0.00018,2]
[403132489,1769181049638,-151.0,0.00018,2]
[403132490,1769181049648,-151.0,0.00018,2]
[403132491,1769181049657,-151.0,0.00018,2]
[403132492,1769181049667,-151.0,0.00018,2]
[403132493,1769181049676,-151.0,0.00018,2]
[403132494,1769181049685,-151.0,0.00018,2]
[403132495,1769181049694,-151.0,0.00018,2]
[403132496,1769181049704,-151.0,0.00018,2]
[403132497,1769181049714,-151.0,0.00018,2]
[403132498,1769181049723,-151.0,0.00018,2]
[403132499,1769181049732,-151.0,0.00018,2]
[403132500,1769181049741,-151.0,0.00018,2]
[403132501,1769181049750,-151.0,0.00018,2]
[403132502,1769181049760,-205.246117,0.00018,2]
[403132503,1769181049769,-715.0,0.00018003,2]
[403132504,1769181049778,-350.0,0.00018028,2]
[403132505,1769181049788,-500.0,0.00018028,2]
[403132506,1769181049798,-500.0,0.00018028,2]
[403132507,1769181049807,-500.0,0.00018028,2]
[403132508,1769181049817,-954.0,0.00018028,2]
[403132509,1769181049826,-500.0,0.00018028,2]
[403132510,1769181049836,-504.98273767,0.00018028,2]
[403132511,1769181049846,-3292.0,0.00018048,2]
[403132512,1769181049855,-234.0,0.00018066,2]
[403132513,1769181049864,-563.39557034,0.00018083,2]
[403132514,1769181049874,-500.0,0.00018083,2]
[403132515,1769181049884,-161.61072492,0.00018083,2]
[403132516,1769181049894,-954.0,0.00018083,2]
[403132517,1769181049903,-489.97005786,0.00018083,2]
[403132518,1769181049912,-715.0,0.00018115,2]
[403132519,1769181049922,-250.0,0.00018128,2]
[403132520,1769181049932,-500.0,0.00018137,2]
[403132521,1769181049942,-954.0,0.00018137,2]
[403132522,1769181049954,-151.0,0.00018147,2]
[403132523,1769181049963,-151.0,0.00018147,2]
[403132524,1769181049973,-1265.0,0.00018147,2]
[403132525,1769181049983,-1265.0,0.00018147,2]
[403132526,1769181049992,-1265.0,0.00018147,2]
[403132527,1769181050002,-1265.0,0.00018147,2]
[403132528,1769181050011,-1265.0,0.00018147,2]
[403132529,1769181050021,-158.0,0.00018147,2]
[403132530,1769181050031,-560.1,0.0001818,2]
[403132531,1769181050040,-1000.0,0.00018184,2]
[403132532,1769181050050,-500.0,0.00018192,2]
[403132533,1769181050060,-954.0,0.00018192,2]
[403132534,1769181050070,-234.0,0.00018207,2]
[403132535,1769181050080,-152.84,0.00018207,2]
[403132536,1769181050089,-500.0,0.00018247,2]
[403132537,1769181050098,-954.0,0.00018247,2]
[403132538,1769181050108,-266.07,0.00018291,2]
[403132539,1769181050116,-335.0,0.000183,2]
[403132540,1769181050126,-182.46165498,0.00018302,2]
[403132541,1769181050135,-954.0,0.00018302,2]
[403132542,1769181050144,-158.9,0.00018336,2]
[403132543,1769181050154,-954.0,0.00018357,2]
[403132544,1769181050163,-234.0,0.00018396,2]
[403132545,1769181050172,-234.0,0.00018403,2]
[403132546,1769181050181,-234.0,0.00018409,2]
[403132547,1769181050191,-954.0,0.00018411,2]
[403132548,1769181050200,-1000.0,0.00018421,2]
[403132549,1769181050210,-867.6,0.00018443,2]
[403132550,1769181050220,-234.0,0.00018463,2]
[403132551,1769181050229,-954.0,0.00018466,2]
[403132552,1769181050239,-234.0,0.00018512,2]
[403132553,1769181050248,-954.0,0.00018521,2]
[403132554,1769181050258,-234.0,0.00018524,2]
[403132555,1769181050269,-954.0,0.00018576,2]
[403132556,1769181050279,-166.66,0.00018587,2]
[403132557,1769181050288,-582.0,0.00018591,2]
[403132558,1769181050299,-168.0,0.00018596,2]
[403132559,1769181050522,-234.0,0.00018624,2]
[403132560,1769181050532,-954.0,0.00018631,2]
[403132561,1769181050541,-2233.6170452,0.00018659,2]
[403132562,1769181050553,-954.0,0.00018685,2]
[403132563,1769181050562,-234.0,0.00018691,2]
[403132564,1769181050571,-867.6,0.00018717,2]
[403132565,1769181050580,-500.0,0.0001874,3]
[403132566,1769181050589,-954.0,0.0001874,2]
[403132567,1769181050598,-954.0,0.00018795,2]
[403132568,1769181050607,-152.4,0.000188,2]
[403132569,1769181050616,-159.67,0.00018832,2]
[403132570,1769181050625,-168.0,0.00018848,2]
[403132571,1769181050635,-954.0,0.0001885,2]
[403132572,1769181050644,-954.0,0.00018904,2]
[403132573,1769181050653,-955.467897,0.00018959,2]
[403132574,1769181050663,-168.0,0.00018967,2]
[403132575,1769181050673,-1500.0,0.00018968,2]
[403132576,1769181050682,-150.0,0.00018973,2]
[403132577,1769181050692,-500.0,0.00018973,2]
[403132578,1769181050702,-150.0,0.00018973,2]
[403132579,1769181050714,-500.0,0.00018973,2]
[403132580,1769181050723,-500.0,0.00018973,2]
[403132581,1769181050734,-500.0,0.00018973,2]
[403132582,1769181050744,-500.0,0.00018973,2]
[403132583,1769181050754,-643.09405312,0.00018973,2]
[403132584,1769181050764,-500.0,0.00018973,2]
[403132585,1769181050774,-500.0,0.00018973,2]
[403132586,1769181050784,-500.72812432,0.00018973,2]
[403132587,1769181050795,-500.0,0.00018973,2]
[403132588,1769181050804,-500.0,0.00018973,2]
[403132589,1769181050814,-500.0,0.00018973,2]
[403132590,1769181050824,-500.0,0.00018973,2]
[403132591,1769181050834,-500.0,0.00018973,2]
[403132592,1769181050843,-500.0,0.00018973,2]
[403132593,1769181050853,-500.6658269,0.00018973,2]
[403132594,1769181050862,-500.0,0.00018973,2]
[403132595,1769181050872,-500.0,0.00018973,2]
[403132596,1769181050881,-500.0,0.00018973,2]
[403132597,1769181050891,-500.0,0.00018973,2]
[403132598,1769181050900,-500.0,0.00018973,2]
[403132599,1769181050909,-500.0,0.00018973,2]
[403132600,1769181050918,-380.4739983,0.00018973,2]
[403132601,1769181050928,-500.43566671,0.00018973,2]
[403132602,1769181050937,-500.0,0.00018973,2]
[403132603,1769181050947,-562.8876994,0.00018973,2]
[403132604,1769181050957,-500.0,0.00018973,2]
[403132605,1769181050967,-500.0,0.00018973,2]
[403132606,1769181050977,-500.34995004,0.00018973,2]
[403132607,1769181050987,-500.0,0.00018973,2]
[403132608,1769181050996,-500.0,0.00018973,2]
[403132609,1769181051006,-500.0,0.00018973,2]
[403132610,1769181051016,-500.0,0.00018973,2]
[403132611,1769181051025,-500.0,0.00018973,2]
[403132612,1769181051035,-500.0,0.00018973,2]
[403132613,1769181051044,-500.0,0.00018973,2]
[403132614,1769181051054,-500.0,0.00018973,2]
[403132615,1769181051064,-500.0,0.00018973,2]
[403132616,1769181051074,-500.0,0.00018973,2]
[403132617,1769181051083,-500.0,0.00018973,2]
[403132618,1769181051093,-500.0,0.00018973,2]
[403132619,1769181051103,-500.0,0.00018973,2]
[403132620,1769181051113,-501.16049598,0.00018973,2]
[403132621,1769181051122,-500.0,0.00018973,2]
[403132622,1769181051131,-867.6,0.0001899,2]
[403132623,1769181051141,-234.0,0.00018994,2]
[403132624,1769181051150,-1000.0,0.00019,2]
[403132625,1769181051159,-1672.19753439,0.00019,2]
[403132626,1769181051168,-103206.32253345,0.00019,2]
[403132627,1769181051179,-235.1710914,0.00019,2]
[403132628,1769181051190,-5663.0,0.00019053,2]
[403132629,1769181051200,-150.0,0.00019178,2]
[403132630,1769181051211,-150.0,0.00019178,2]
[403132631,1769181051220,-150.0,0.00019178,2]
[403132632,1769181051230,-150.0,0.00019178,2]
[403132633,1769181051239,-150.0,0.00019178,2]
[403132634,1769181051249,-177.47759555,0.00019178,2]
[403132635,1769181051258,-150.0,0.00019178,2]
[403132636,1769181051268,-150.0,0.00019178,2]
[403132637,1769181051277,-150.0,0.00019178,2]
[403132638,1769181051287,-150.0,0.00019178,2]
[403132639,1769181051296,-500.0,0.00019178,2]
[403132640,1769181051306,-581.41378452,0.00019178,2]
[403132641,1769181051315,-500.0,0.00019178,2]
[403132642,1769181051325,-500.0,0.00019178,2]
[403132643,1769181051335,-500.0,0.00019178,2]
[403132644,1769181051345,-156.98964916,0.00019178,2]
[403132645,1769181051355,-3000.0,0.00019178,2]
[403132646,1769181051364,-939.02984007,0.00019178,7]
[403132647,1769181051373,-885.89,0.00019178,30]
[403132648,1769181051382,-151.0,0.00019178,2]
[403132649,1769181051392,-151.0,0.00019178,2]
[403132650,1769181051401,-151.0,0.00019178,2]
[403132651,1769181051412,-283.885334,0.00019178,2]
[403132652,1769181051421,-283.885334,0.00019178,2]
[403132653,1769181051431,-283.885334,0.00019178,2]
[403132654,1769181051440,-283.885334,0.00019178,2]
[403132655,1769181051449,-283.885334,0.00019178,2]
[403132656,1769181051461,-283.885334,0.00019178,2]
[403132657,1769181051475,-283.885334,0.00019178,2]
[403132658,1769181051484,-283.885334,0.00019178,2]
[403132659,1769181051494,-283.885334,0.00019178,2]
[403132660,1769181051504,-283.885334,0.00019178,2]
[403132661,1769181051514,-283.885334,0.00019178,2]
[403132662,1769181051524,-283.885334,0.00019178,2]
[403132663,1769181051534,-283.885334,0.00019178,2]
[403132664,1769181051544,-283.885334,0.00019178,2]
[403132665,1769181051554,-283.885334,0.00019178,2]
[403132666,1769181051564,-283.885334,0.00019178,2]
[403132667,1769181051573,-158.9,0.00019245,2]
[403132668,1769181051583,-503.31,0.00019264,2]
[403132669,1769181051593,-166.26,0.0001933,2]
[403132670,1769181051603,-267.79728294,0.00019516,2]
[403132671,1769181051612,-150.0,0.00019521,2]
[403132672,1769181051622,-800.71345427,0.00019521,2]
[403132673,1769181051631,-250.0,0.00019521,2]
[403132674,1769181051640,-1000.0,0.00019521,2]
[403132675,1769181051650,-1000.0,0.00019521,2]
[403132676,1769181051659,-1000.0,0.00019521,2]
[403132677,1769181051669,-1000.0,0.00019521,2]
[403132678,1769181051678,-1000.0,0.00019521,2]
[403132679,1769181051688,-1000.75842216,0.00019521,2]
[403132680,1769181051697,-1000.82182842,0.00019521,2]
[403132681,1769181051709,-1000.0,0.00019521,2]
[403132682,1769181051718,-1000.0,0.00019521,2]
[403132683,1769181051728,-1000.38860912,0.00019521,2]
[403132684,1769181051739,-1000.0,0.00019521,2]
[403132685,1769181051749,-1000.0,0.00019521,2]
[403132686,1769181051758,-1000.0,0.00019521,2]
[403132687,1769181051768,-1000.0,0.00019521,2]
[403132688,1769181051777,-1000.0,0.00019521,2]
[403132689,1769181051787,-1000.0,0.00019521,2]
[403132690,1769181051797,-1000.0,0.00019521,2]
[403132691,1769181051806,-1000.0,0.00019521,2]
[403132692,1769181051816,-1000.0,0.00019521,2]
[403132693,1769181051825,-1000.51591756,0.00019521,2]
[403132694,1769181051836,-1000.0,0.00019521,2]
[403132695,1769181051846,-1000.0,0.00019521,2]
[403132696,1769181051855,-640.05411251,0.00019521,2]
[403132697,1769181051864,-1000.0,0.00019521,2]
[403132698,1769181051874,-1000.0,0.00019521,2]
[403132699,1769181051884,-1000.0,0.00019521,2]
[403132700,1769181051894,-1000.75086181,0.00019521,2]
[403132701,1769181051904,-692.69065557,0.00019521,2]
[403132702,1769181051914,-1000.67368382,0.00019521,2]
[403132703,1769181051924,-1000.0,0.00019521,2]
[403132704,1769181051934,-1000.0,0.00019521,2]
[403132705,1769181051943,-1000.0,0.00019521,2]
[403132706,1769181051955,-1000.0,0.00019521,2]
[403132707,1769181051964,-1000.0,0.00019521,2]
[403132708,1769181051974,-591.51982196,0.00019521,2]
[403132709,1769181051984,-507.0,0.000196,2]
[403132710,1769181051994,-266.07,0.00019645,2]
[403132711,1769181052003,-522.99106436,0.00019684,2]
[403132712,1769181052013,-155.0,0.00019799,2]
[403132713,1769181052022,-155.0,0.00019799,2]
[403132714,1769181052032,-150.0,0.00019809,2]
[403132715,1769181052042,-2119.0,0.00019853,2]
[403132716,1769181052052,-152.84,0.00019955,2]
[403132717,1769181052062,-176.34723835,0.0002,2]
[403132718,1769181052072,-1000.0,0.0002,2]
[403132719,1769181052082,-501.43311,0.0002,2]
[403132720,1769181052092,-442.90033865,0.0002,7]
[403132721,1769181052102,-203.0,0.0002,12]
[403132722,1769181052112,-1900.08,0.0002,2]
[403132723,1769181052121,-2000.0,0.0002,2]
[403132724,1769181052131,-2000.0,0.0002,2]
[403132725,1769181052141,-200.0,0.0002,2]
[403132726,1769181052151,-2000.0,0.0002,2]
[403132727,1769181052161,-2000.0,0.0002,2]
[403132728,1769181052172,-7498.63371805,0.0002,2]
[403132729,1769181052182,-189.05779498,0.0002,20]
[403132730,1769181052192,-187.88,0.0002,2]
[403132731,1769181052201,-151.38954661,0.0002,20]
[403132732,1769181052212,-200.564111,0.0002,2]
[403132733,1769181052222,-237.33323463,0.00020068,2]
[403132734,1769181052231,-350.0,0.00020068,2]
[403132735,1769181052241,-1500.0,0.00020068,2]
[403132736,1769181052250,-1500.0,0.00020068,2]
[403132737,1769181052260,-1500.0,0.00020068,2]
[403132738,1769181052270,-1500.0,0.00020068,2]
[403132739,1769181052279,-997.96084495,0.00020068,2]
[403132740,1769181052288,-1500.0,0.00020068,2]
[403132741,1769181052297,-891.30336086,0.00020068,2]
[403132742,1769181052307,-900.37422975,0.00020068,2]
[403132743,1769181052316,-1500.0,0.00020068,2]
[403132744,1769181052325,-1500.0,0.00020068,2]
[403132745,1769181052335,-1500.0,0.00020068,2]
[403132746,1769181052345,-1500.0,0.00020068,2]
[403132747,1769181052354,-1500.0,0.00020068,2]
[403132748,1769181052364,-1501.3157171,0.00020068,2]
[403132749,1769181052374,-1500.0,0.00020068,2]
[403132750,1769181052383,-1501.01059946,0.00020068,2]
[403132751,1769181052392,-1500.0,0.00020068,2]
[403132752,1769181052402,-1500.96986105,0.00020068,2]
[403132753,1769181052412,-1500.0,0.00020068,2]
[403132754,1769181052421,-1500.0,0.00020068,2]
[403132755,1769181052430,-1500.0,0.00020068,2]
[403132756,1769181052439,-1500.0,0.00020068,2]
[403132757,1769181052449,-615.0,0.0002017,2]
[403132758,1769181052460,-1406.0,0.0002017,2]
[403132759,1769181052475,-184.0,0.00020174,2]
[403132760,1769181052484,-1269.0,0.00020174,2]
[403132761,1769181052495,-662.18,0.00020175,2]
[403132762,1769181052505,-5215.548,0.00020175,2]
[403132763,1769181052515,-567.0,0.00020175,2]
[403132764,1769181052524,-503.44696293,0.00020195,2]
[403132765,1769181052533,-1000.0,0.00020205,2]
[403132766,1769181052543,-200.0,0.0002022,2]
[403132767,1769181052554,-752.39,0.000204,3]
[403132768,1769181052563,-400.0,0.00020429,2]
[403132769,1769181052574,-150.0,0.0002044,2]
[403132770,1769181052583,-158.33,0.00020548,2]
[403132771,1769181052593,-204.23,0.00020577,2]
[403132772,1769181052602,-150.0,0.00020598,2]
[403132773,1769181052612,-1332.0,0.00020604,2]
[403132774,1769181052621,-3473.0,0.00020604,2]
[403132775,1769181052630,-450.0,0.00020616,2]
[403132776,1769181052640,-2000.0,0.00020616,2]
[403132777,1769181052650,-2000.0,0.00020616,2]
[403132778,1769181052659,-1139.69507159,0.00020616,2]
[403132779,1769181052669,-2002.38199886,0.00020616,2]
[403132780,1769181052679,-561.91385606,0.00020616,2]
[403132781,1769181052690,-434.89067116,0.00020616,2]
[403132782,1769181052700,-461.93263446,0.00020616,2]
[403132783,1769181052712,-617.64963419,0.00020616,2]
[403132784,1769181052722,-173.36936952,0.00020616,2]
[403132785,1769181052732,-2000.0,0.00020616,2]
[403132786,1769181052741,-1824.45487764,0.00020616,2]
[403132787,1769181052752,-1500.62675545,0.00020616,2]
[403132788,1769181052761,-2000.0,0.00020616,2]
[403132789,1769181052771,-2000.0,0.00020616,2]
[403132790,1769181052780,-2000.0,0.00020616,2]
[403132791,1769181052790,-479.04,0.00020858,2]
[403132792,1769181052799,-468.39,0.00020859,2]
[403132793,1769181052810,-40472.36627862,0.000209,30]
[403132794,1769181052820,-150.0,0.00020926,2]
[403132795,1769181052830,-273.78193455,0.00020948,2]
[403132796,1769181052839,-5896.79,0.00020951,2]
[403132797,1769181052848,-5236.58,0.00020951,2]
[403132798,1769181052858,-150.99,0.00020951,2]
[403132799,1769181052867,-9999.99,0.00020951,2]
[403132800,1769181052876,-3843.03,0.00020951,2]
[403132801,1769181052885,-499.99,0.00020951,2]
[403132802,1769181052973,-9999.99,0.00020951,2]
[403132803,1769181052982,-444.27,0.00020951,2]
[403132804,1769181052992,-150.99,0.00020951,2]
[403132805,1769181053002,-3823.15,0.00020951,2]
[403132806,1769181053011,-999.99,0.00020951,2]
[403132807,1769181053021,-8739.71,0.00020951,2]
[403132808,1769181053030,-1000.0,0.00021,3]
[403132809,1769181053040,-217.50949578,0.00021,7]
[403132810,1769181053049,-150.0,0.00021,2]
[403132811,1769181053059,-150.0,0.00021072,4]
[403132812,1769181053069,-550.0,0.00021164,2]
[403132813,1769181053078,-703.89002219,0.00021164,2]
[403132814,1769181053088,-1500.0,0.00021164,2]
[403132815,1769181053098,-954.62309315,0.00021164,2]
[403132816,1769181053107,-1503.37878627,0.00021164,2]
[403132817,1769181053118,-2500.0,0.00021164,2]
[403132818,1769181053127,-562.59372992,0.00021164,2]
[403132819,1769181053137,-159.67,0.00021186,2]
[403132820,1769181053147,-166.26,0.00021263,2]
[403132821,1769181053156,-507.0,0.00021326,3]
[403132822,1769181053166,-177.38,0.00021333,2]
[403132823,1769181053175,-522.99106436,0.00021368,2]
[403132824,1769181053184,-150.0,0.0002145,4]
[403132825,1769181053194,-150.0,0.0002145,4]
[403132826,1769181053204,-155.0,0.00021599,2]
[403132827,1769181053213,-177.38,0.00021667,2]
[403132828,1769181053223,-150.0,0.00021703,4]
[403132829,1769181053232,-244.67285865,0.00021712,2]
[403132830,1769181053242,-2099.34992591,0.00021712,2]
[403132831,1769181053252,-1549.93,0.00021757,2]
[403132832,1769181053262,-2586.191485,0.0002185,2]
[403132833,1769181053271,-500.0,0.00021917,2]
[403132834,1769181053281,-596.39245023,0.00021917,3]
[403132835,1769181053290,-5000.0,0.00021918,2]
[403132836,1769181053299,-151.0,0.00021918,2]
[403132837,1769181053310,-151.0,0.00021918,2]
[403132838,1769181053320,-151.0,0.00021918,2]
[403132839,1769181053329,-151.0,0.00021918,2]
[403132840,1769181053338,-188.828196,0.00021918,2]
[403132841,1769181053348,-151.0,0.00021918,2]
[403132842,1769181053356,-151.0,0.00021918,2]
[403132843,1769181053366,-151.0,0.00021918,2]
[403132844,1769181053375,-151.0,0.00021918,2]
[403132845,1769181053384,-151.0,0.00021918,2]
[403132846,1769181053394,-151.0,0.00021918,2]
[403132847,1769181053403,-151.0,0.00021918,2]
[403132848,1769181053412,-797.0,0.00021918,5]